[Event "10th Uppsala Young Champions 2023"]
[Site "Uppsala"]
[Date "2023.10.29"]
[Round "4.7"]
[White "Briem, Stephan"]
[Black "Morell, Oscar"]
[Result "1-0"]
[ECO "E14"]
[WhiteElo "2144"]
[BlackElo "1942"]
[Annotator "NA"]
[PlyCount "79"]
[EventDate "2023.10.27"]
[EventType "swiss"]
[EventCountry "SWE"]
[SourceTitle "playchess.com"]
[Source "ChessBase"]
[SourceQuality "1"]
[TimeControl "5400+30"]

1. d4 {[%emt 0:00:53]} d5 {[%emt 0:00:15]} 2. Nf3 {[%emt 0:01:16]} Nf6 {[%emt 0:00:15]} 3. c4 {[%emt 0:00:26]} e6 {[%emt 0:00:27]} 4. e3 {[%emt 0:00:11]} b6 {[%emt 0:00:09]} 5. Nc3 {[%emt 0:06:05]} Bb7 {[%emt 0:00:30]} 6. cxd5 {[%emt 0:00:12]} exd5 {[%emt 0:00:08]} 7. b3 {[%emt 0:01:13]} Bd6 {[%emt 0:00:33]} 8. Bb2 {[%emt 0:00:45]} O-O {[%emt 0:00:16]} 9. Bd3 {[%emt 0:06:13]} a6 {[%emt 0:01:01]} 10. Rc1 {[%emt 0:03:00]} Nbd7 {[%emt 0:01:05]} 11. Qc2 {[%emt 0:03:44]} Qe7 {[%emt 0:06:05]} 12. O-O {[%emt 1:12:32]} Ne4 {[%emt 0:00:55]} 13. Ne2 {[%emt 0:00:00]} Rac8 {[%emt 0:03:26]} 14. Ng3 {[%emt 0:00:00]} f5 {[%emt 0:02:43]} 15. Qe2 {[%emt 0:00:00]} b5 {[%emt 0:11:36]} 16. a4 {[%emt 0:00:00]} c6 {[%emt 0:04:39]} 17. Rc2 {[%emt 0:00:00]} g5 {[%emt 0:05:56]} 18. axb5 {[%emt 0:00:00]} axb5 {[%emt 0:01:14]} 19. Ra1 {[%emt 0:00:00]} g4 {[%emt 0:04:13]} 20. Bxe4 {[%emt 0:00:00]} dxe4 {[%emt 0:07:58]} 21. Nd2 {[%emt 0:00:00]} h5 {[%emt 0:04:26]} 22. d5 {[%emt 0:00:00]} Nc5 {[%emt 0:09:55]} 23. dxc6 {[%emt 0:00:00]} Bxc6 {[%emt 0:02:06]} 24. Bd4 {[%emt 0:00:00]} Nd3 {[%emt 0:25:06]} 25. Ra7 {[%emt 0:00:00]} Bd7 {[%emt 0:05:47]} 26. Rxc8 {[%emt 0:03:17]} Rxc8 {[%emt 0:00:06]} 27. Nxf5 {[%emt 0:01:10]} Bxf5 {[%emt 0:00:39]} 28. Rxe7 {[%emt 0:00:04]} Bxe7 {[%emt 0:00:09]} 29. Nf1 {[%emt 0:01:28]} Be6 {[%emt 0:01:43]} 30. Qa2 {[%emt 0:02:19]} Nc1 {[%emt 0:00:33]} 31. Qa6 {[%emt 0:00:37]} Ne2+ {[%emt 0:01:27]} 32. Kh1 {[%emt 0:00:02]} Nxd4 {[%emt 0:00:34]} 33. exd4 {[%emt 0:00:16]} Kf7 {[%emt 0:00:32]} 34. Qxb5 {[%emt 0:00:48]} Rd8 {[%emt 0:00:30]} 35. Qxh5+ {[%emt 0:00:24]} Kf8 {[%emt 0:00:07]} 36. Ne3 {[%emt 0:00:39]} Rc8 {[%emt 0:00:49]} 37. g3 {[%emt 0:00:32]} Rc1+ {[%emt 0:00:11]} 38. Kg2 {[%emt 0:00:01]} Bxb3 {[%emt 0:00:23]} 39. Qxg4 {[%emt 0:00:27]} Bf7 {[%emt 0:00:37]} 40. Qxe4 {[%emt 0:00:43]} 1-0

[Event "10th Uppsala Young Champions 2023"]
[Site "Uppsala"]
[Date "2023.10.29"]
[Round "4.8"]
[White "Ljung, Harald"]
[Black "Mai, Alexander Oliver"]
[Result "1-0"]
[ECO "E39"]
[WhiteElo "2159"]
[BlackElo "2118"]
[Annotator "ChessBase"]
[PlyCount "103"]
[EventDate "2023.10.27"]
[EventType "swiss"]
[EventCountry "SWE"]
[SourceTitle "playchess.com"]
[Source "ChessBase"]
[SourceQuality "1"]
[TimeControl "5400+30"]

1. d4 {[%emt 0:00:03]} Nf6 {[%emt 0:00:07]} 2. c4 {[%emt 0:00:14]} e6 {[%emt 0:00:09]} 3. Nc3 {[%emt 0:00:06]} Bb4 {[%emt 0:00:08]} 4. Qc2 {[%emt 0:00:57]} O-O {[%emt 0:00:39]} 5. Nf3 {[%emt 0:00:14]} c5 {[%emt 0:04:42]} 6. dxc5 {[%emt 0:05:13]} Na6 {[%emt 0:00:08]} 7. e3 {[%emt 0:00:34]} Nxc5 {[%emt 0:02:17]} 8. Be2 {[%emt 0:00:19]} Nce4 {[%emt 0:03:10]} 9. Bd2 {[%emt 0:02:57]} Nxd2 {[%emt 0:01:09]} 10. Nxd2 {[%emt 0:00:23]} d5 {[%emt 0:02:37]} 11. O-O {[%emt 0:02:23]} Bd7 {[%emt 0:06:05]} 12. cxd5 {[%emt 0:02:41]} Bxc3 {[%emt 0:00:43]} 13. Qxc3 {[%emt 0:00:08]} Nxd5 {[%emt 0:00:27]} 14. Qb3 {[%emt 0:00:11]} Bc6 {[%emt 0:00:56]} 15. Nf3 {[%emt 0:02:23]} Qb6 {[%emt 0:03:37]} 16. Qxb6 {[%emt 0:05:01]} Nxb6 {[%emt 0:00:43]} 17. Nd4 {[%emt 0:00:35]} Bd5 {[%emt 0:00:55]} 18. Nb5 {[%emt 0:01:01]} a6 {[%emt 0:03:05]} 19. Nc3 {[%emt 0:00:52]} Rac8 {[%emt 0:05:50]} 20. Rfd1 {[%emt 0:01:10]} Rfd8 {[%emt 0:01:29]} 21. Rac1 {[%emt 0:00:26]} Bc6 {[%emt 0:07:08]} 22. h3 {[%emt 0:03:33]} Kf8 {[%emt 0:00:50]} 23. Bf3 {[%emt 0:22:52]} Bxf3 {[%emt 0:01:44]} 24. gxf3 {[%emt 0:00:19]} Ke7 {[%emt 0:03:30]} 25. Rxd8 {[%emt 0:02:45]} Rxd8 {[%emt 0:04:34]} 26. Ne4 {[%emt 0:00:59]} f5 {[%emt 0:01:47]} 27. Rc7+ {[%emt 0:02:44]} Nd7 {[%emt 0:02:01]} 28. Nc3 {[%emt 0:04:02]} Rb8 {[%emt 0:01:56]} 29. f4 {[%emt 0:01:14]} Kd6 {[%emt 0:01:58]} 30. Rc4 {[%emt 0:00:19]} b5 {[%emt 0:02:58]} 31. Rd4+ {[%emt 0:01:01]} Kc6 {[%emt 0:01:08]} 32. Ne2 {[%emt 0:01:25]} e5 {[%emt 0:16:43]} 33. fxe5 {[%emt 0:00:39]} Nxe5 {[%emt 0:00:06]} 34. Kg2 {[%emt 0:00:16]} Rc8 {[%emt 0:01:32]} 35. Rh4 {[%emt 0:01:41]} Kb6 {[%emt 0:02:07]} 36. Nd4 {[%emt 0:00:34]} h6 {[%emt 0:03:46]} 37. Rh5 {[%emt 0:01:45]} Nd3 {[%emt 0:00:36]} 38. b3 {[%emt 0:05:02]} f4 {[%emt 0:01:34]} 39. Rd5 {[%emt 0:04:08]} Ne1+ {[%emt 0:07:47]} 40. Kf1 {[%emt 0:00:31]} Rc1 {[%emt 0:01:26]} 41. Ke2 {[%emt 0:00:13]} Ra1 {[%emt 0:01:29]} 42. e4 {[%emt 0:03:53]} g5 {[%emt 0:02:04]} 43. e5 {[%emt 0:06:23]} Ng2 {[%emt 0:00:13]} 44. Rd6+ {[%emt 0:03:58]} Kc7 {[%emt 0:01:40]} 45. Rxa6 {[%emt 0:03:34]} Re1+ {[%emt 0:00:18]} 46. Kf3 {[%emt 0:00:25]} Nh4+ {[%emt 0:00:09]} 47. Kg4 {[%emt 0:00:08]} Rxe5 {[%emt 0:00:42]} 48. Rxh6 {[%emt 0:00:09]} Kd7 {[%emt 0:01:18]} 49. Rh5 {[%emt 0:07:15]} Re4 {[%emt 0:02:08]} 50. Nf3 {[%emt 0:02:17]} Ng2 {[%emt 0:00:39]} 51. Nxg5 {[%emt 0:00:58]} Re1 {[%emt 0:00:25]} 52. Kf3 {[%emt 0:00:29]} 1-0

[Event "10th Uppsala Young Champions 2023"]
[Site "Uppsala"]
[Date "2023.10.29"]
[Round "4.9"]
[White "Frank, Anton"]
[Black "Morell, Ludvig"]
[Result "0-1"]
[ECO "B81"]
[WhiteElo "1997"]
[BlackElo "2017"]
[Annotator "NA RC"]
[PlyCount "86"]
[EventDate "2023.10.27"]
[EventType "swiss"]
[EventCountry "SWE"]
[SourceTitle "playchess.com"]
[Source "ChessBase"]
[SourceQuality "1"]
[TimeControl "5400+30"]

1. e4 {[%emt 0:00:02]} c5 {[%emt 0:00:11]} 2. Nf3 {[%emt 0:00:05]} d6 {[%emt 0:00:03]} 3. d4 {[%emt 0:00:08]} cxd4 {[%emt 0:00:02]} 4. Nxd4 {[%emt 0:00:08]} Nf6 {[%emt 0:00:04]} 5. Nc3 {[%emt 0:00:08]} a6 {[%emt 0:00:19]} 6. h3 {[%emt 0:00:07]} e6 {[%emt 0:00:41]} 7. g4 {[%emt 0:00:08]} d5 {[%emt 0:00:34]} 8. exd5 {[%emt 0:00:08]} Nxd5 {[%emt 0:00:07]} 9. Nde2 {[%emt 0:00:08]} Nxc3 {[%emt 0:01:21]} 10. Qxd8+ {[%emt 0:00:22]} Kxd8 {[%emt 0:00:07]} 11. Nxc3 {[%emt 0:00:24]} Bd7 {[%emt 0:00:34]} 12. Be3 {[%emt 0:00:36]} Bc6 {[%emt 0:00:33]} 13. O-O-O+ {[%emt 0:00:07]} Nd7 {[%emt 0:02:21]} 14. Rg1 {[%emt 0:00:49]} Bb4 {[%emt 0:04:45]} 15. Bg2 {[%emt 0:14:12]} Bxg2 {[%emt 0:01:41]} 16. Rxg2 {[%emt 0:00:13]} Bxc3 {[%emt 0:07:10]} 17. bxc3 {[%emt 0:00:10]} Ke7 {[%emt 0:00:14]} 18. g5 {[%emt 0:11:54]} Rhg8 {[%emt 0:15:28]} 19. f4 {[%emt 0:03:54]} h6 {[%emt 0:02:05]} 20. Rgd2 {[%emt 0:12:07]} Rad8 {[%emt 0:04:32]} 21. gxh6 {[%emt 0:09:44]} gxh6 {[%emt 0:00:23]} 22. f5 {[%emt 0:00:06]} exf5 {[%emt 0:13:15]} 23. Bf4 {[%emt 0:11:43]} Nf6 {[%emt 0:05:08]} 24. Bxh6 {[%emt 0:20:23]} Ne4 {[%emt 0:10:11]} 25. Rd4 {[%emt 0:00:29]} Rxd4 {[%emt 0:04:59]} 26. cxd4 {[%emt 0:01:59]} Rh8 {[%emt 0:00:11]} 27. Bf4 {[%emt 0:00:14]} Rxh3 {[%emt 0:00:07]} 28. d5 {[%emt 0:00:11]} Nc3 {[%emt 0:06:12]} 29. Re1+ {[%emt 0:00:13]} Kd7 {[%emt 0:00:04]} 30. d6 {[%emt 0:00:39]} Ne4 {[%emt 0:00:05]} 31. Rd1 {[%emt 0:01:32]} Rh4 {[%emt 0:00:49]} 32. Be5 {[%emt 0:00:20]} Rh6 {[%emt 0:01:57]} 33. Rf1 {[%emt 0:00:41]} Nxd6 {[%emt 0:00:34]} 34. Bxd6 {[%emt 0:00:06]} Rxd6 {[%emt 0:00:06]} 35. Rxf5 {[%emt 0:00:06]} Ke6 {[%emt 0:00:06]} 36. Rh5 {[%emt 0:00:41]} Rd7 {[%emt 0:01:02]} 37. Kb2 {[%emt 0:02:38]} f5 {[%emt 0:00:13]} 38. Kc3 {[%emt 0:00:12]} Ke5 {[%emt 0:00:15]} 39. Rh8 {[%emt 0:00:26]} Ke4 {[%emt 0:00:39]} 40. Re8+ {[%emt 0:01:05]} Kf3 {[%emt 0:01:43]} 41. Kb4 {[%emt 0:01:16]} Rc7 {[%emt 0:01:11]} 42. c4 {[%emt 0:00:23]} f4 {[%emt 0:00:12]} 43. Kc3 {[%emt 0:00:53]} b5 {[%emt 0:00:56]} 0-1

[Event "10th Uppsala Young Champions 2023"]
[Site "Uppsala"]
[Date "2023.10.29"]
[Round "4.10"]
[White "Ostensson, Julia"]
[Black "Valcu, Lavinia"]
[Result "1-0"]
[ECO "B06"]
[WhiteElo "1878"]
[BlackElo "1990"]
[Annotator "NA RC"]
[PlyCount "25"]
[EventDate "2023.10.27"]
[EventType "swiss"]
[EventCountry "SWE"]
[SourceTitle "playchess.com"]
[Source "ChessBase"]
[SourceQuality "1"]
[TimeControl "5400+30"]

1. e4 {[%emt 0:00:03]} g6 {[%emt 0:00:17]} 2. d4 {[%emt 0:00:04]} Bg7 {[%emt 0:00:13]} 3. Nc3 {[%emt 0:00:05]} d6 {[%emt 0:00:04]} 4. Be3 {[%emt 0:00:03]} a6 {[%emt 0:00:06]} 5. f4 {[%emt 0:00:05]} b5 {[%emt 0:00:05]} 6. Be2 {[%emt 0:00:07]} Nd7 {[%emt 0:00:06]} 7. e5 {[%emt 0:01:40]} c5 {[%emt 0:00:16]} 8. Nf3 {[%emt 0:16:42]} Nh6 {[%emt 0:02:48]} 9. dxc5 {[%emt 0:08:18]} dxe5 {[%emt 0:17:02]} 10. c6 {[%emt 0:03:01]} Nb8 {[%emt 0:07:57]} 11. Qxd8+ {[%emt 0:00:32]} Kxd8 {[%emt 0:00:06]} 12. Bb6+ {[%emt 0:05:04]} Ke8 {[%emt 0:00:09]} 13. Nd5 {[%emt 0:01:06]} 1-0

[Event "10th Uppsala Young Champions 2023"]
[Site "Uppsala"]
[Date "2023.10.29"]
[Round "4.11"]
[White "Nilsson, Oliver"]
[Black "Muntean, Victor"]
[Result "0-1"]
[ECO "C56"]
[WhiteElo "1933"]
[BlackElo "2092"]
[Annotator "NA"]
[PlyCount "50"]
[EventDate "2023.10.27"]
[EventType "swiss"]
[EventCountry "SWE"]
[SourceTitle "playchess.com"]
[Source "ChessBase"]
[SourceQuality "1"]
[TimeControl "5400+30"]

1. e4 {[%emt 0:00:11]} e5 {[%emt 0:00:04]} 2. Nf3 {[%emt 0:00:03]} Nc6 {[%emt 0:00:03]} 3. Bc4 {[%emt 0:00:03]} Nf6 {[%emt 0:00:05]} 4. d4 {[%emt 0:01:21]} exd4 {[%emt 0:00:05]} 5. e5 {[%emt 0:00:04]} d5 {[%emt 0:00:04]} 6. Bb5 {[%emt 0:00:02]} Ne4 {[%emt 0:00:04]} 7. Nxd4 {[%emt 0:00:04]} Bc5 {[%emt 0:00:05]} 8. Be3 {[%emt 0:01:05]} O-O {[%emt 0:00:06]} 9. Nxc6 {[%emt 0:01:24]} bxc6 {[%emt 0:00:11]} 10. Bxc5 {[%emt 0:00:19]} Nxc5 {[%emt 0:00:06]} 11. Bxc6 {[%emt 0:00:37]} Rb8 {[%emt 0:00:04]} 12. Qxd5 {[%emt 0:00:33]} Qe7 {[%emt 0:00:06]} 13. O-O {[%emt 0:00:34]} Rxb2 {[%emt 0:00:47]} 14. Nc3 {[%emt 0:00:39]} Rd8 {[%emt 0:01:12]} 15. Qf3 {[%emt 0:00:45]} Ne6 {[%emt 0:00:39]} 16. Nd5 {[%emt 0:00:30]} Qc5 {[%emt 0:08:55]} 17. Rad1 {[%emt 0:01:38]} Kf8 {[%emt 0:09:47]} 18. c4 {[%emt 0:02:28]} Rxa2 {[%emt 0:15:01]} 19. Qe4 {[%emt 0:10:05]} Ng5 {[%emt 0:18:58]} 20. Qh4 {[%emt 0:29:42]} h6 {[%emt 0:05:13]} 21. Nb4 {[%emt 0:03:59]} Rad2 {[%emt 0:03:08]} 22. Bd5 {[%emt 0:35:41]} Rxd1 {[%emt 0:01:22]} 23. Rxd1 {[%emt 0:00:06]} Qxb4 {[%emt 0:00:19]} 24. f4 {[%emt 0:00:03]} Qc5+ {[%emt 0:00:21]} 25. Kh1 {[%emt 0:00:06]} Qxc4 {[%emt 0:00:20]} 0-1

[Event "10th Uppsala Young Champions 2023"]
[Site "Uppsala"]
[Date "2023.10.30"]
[Round "5.1"]
[White "Gavrilescu, David"]
[Black "Sorensen, Hampus"]
[Result "1-0"]
[ECO "C50"]
[WhiteElo "2534"]
[BlackElo "2470"]
[Annotator "RC"]
[PlyCount "83"]
[EventDate "2023.10.27"]
[EventType "swiss"]
[EventCountry "SWE"]
[SourceTitle "playchess.com"]
[Source "ChessBase"]
[SourceQuality "1"]
[TimeControl "5400+30"]

1. e4 {[%emt 0:00:15]} e5 {[%emt 0:00:40]} 2. Nf3 {[%emt 0:00:28]} Nc6 {[%emt 0:00:10]} 3. Bc4 {[%emt 0:00:26]} Bc5 {[%emt 0:00:18]} 4. d3 {[%emt 0:00:39]} Nf6 {[%emt 0:00:17]} 5. Nc3 {[%emt 0:00:13]} h6 {[%emt 0:02:59]} 6. O-O {[%emt 0:00:30]} O-O {[%emt 0:00:59]} 7. h3 {[%emt 0:00:47]} a6 {[%emt 0:05:22]} 8. Be3 {[%emt 0:00:59]} Bxe3 {[%emt 0:01:10]} 9. fxe3 {[%emt 0:00:07]} d6 {[%emt 0:00:17]} 10. a4 {[%emt 0:00:41]} Be6 {[%emt 0:06:55]} 11. b3 {[%emt 0:00:43]} Ne7 {[%emt 0:07:14]} 12. Bxe6 {[%emt 0:04:06]} fxe6 {[%emt 0:00:21]} 13. d4 {[%emt 0:00:07]} Ng6 {[%emt 0:01:10]} 14. Qd3 {[%emt 0:05:01]} Qe8 {[%emt 0:07:49]} 15. Rad1 {[%emt 0:04:45]} Qc6 {[%emt 0:02:52]} 16. Nd2 {[%emt 0:06:02]} Nh5 {[%emt 0:09:44]} 17. d5 {[%emt 0:06:14]} exd5 {[%emt 0:01:48]} 18. exd5 {[%emt 0:05:37]} Qe8 {[%emt 0:00:10]} 19. Nce4 {[%emt 0:07:00]} Qe7 {[%emt 0:10:57]} 20. a5 {[%emt 0:08:58]} Rxf1+ {[%emt 0:07:43]} 21. Rxf1 {[%emt 0:01:59]} Rf8 {[%emt 0:00:08]} 22. c4 {[%emt 0:10:41]} Nf6 {[%emt 0:17:17]} 23. b4 {[%emt 0:09:17]} Nxe4 {[%emt 0:02:28]} 24. Qxe4 {[%emt 0:03:50]} Rxf1+ {[%emt 0:00:10]} 25. Nxf1 {[%emt 0:00:10]} Nf8 {[%emt 0:02:43]} 26. Ng3 {[%emt 0:01:33]} Qg5 {[%emt 0:00:57]} 27. Qf3 {[%emt 0:00:35]} Qh4 {[%emt 0:02:04]} 28. Nf5 {[%emt 0:02:00]} Qf6 {[%emt 0:01:37]} 29. c5 {[%emt 0:01:48]} dxc5 {[%emt 0:00:26]} 30. bxc5 {[%emt 0:00:07]} Nd7 {[%emt 0:00:10]} 31. d6 {[%emt 0:05:12]} cxd6 {[%emt 0:00:02]} 32. cxd6 {[%emt 0:00:07]} Kh7 {[%emt 0:02:44]} 33. g4 {[%emt 0:02:20]} Qe6 {[%emt 0:05:16]} 34. Qxb7 {[%emt 0:00:20]} h5 {[%emt 0:00:11]} 35. Qb4 {[%emt 0:07:19]} Qd5 {[%emt 0:01:05]} 36. Qb1 {[%emt 0:04:38]} Kh8 {[%emt 0:00:01]} 37. Qc2 {[%emt 0:00:47]} Nc5 {[%emt 0:01:03]} 38. e4 {[%emt 0:00:50]} Nxe4 {[%emt 0:01:00]} 39. d7 {[%emt 0:00:07]} Nc5 {[%emt 0:01:07]} 40. Ne3 {[%emt 0:00:59]} Qxd7 {[%emt 0:00:27]} 41. Qxc5 {[%emt 0:00:02]} hxg4 {[%emt 0:00:04]} 42. hxg4 {[%emt 0:00:07]} 1-0

[Event "10th Uppsala Young Champions 2023"]
[Site "Uppsala"]
[Date "2023.10.30"]
[Round "5.2"]
[White "Falkevall, Axel"]
[Black "Stefansson, Vignir Vatnar"]
[Result "1/2-1/2"]
[ECO "E04"]
[WhiteElo "2280"]
[BlackElo "2484"]
[Annotator "RC"]
[PlyCount "80"]
[EventDate "2023.10.27"]
[EventType "swiss"]
[EventCountry "SWE"]
[SourceTitle "playchess.com"]
[Source "ChessBase"]
[SourceQuality "1"]
[TimeControl "5400+30"]

1. d4 {[%emt 0:00:05]} d5 {[%emt 0:06:19]} 2. c4 {[%emt 0:00:13]} e6 {[%emt 0:00:08]} 3. Nf3 {[%emt 0:00:13]} Nf6 {[%emt 0:02:18]} 4. g3 {[%emt 0:00:09]} dxc4 {[%emt 0:00:54]} 5. Bg2 {[%emt 0:00:07]} Nbd7 {[%emt 0:00:03]} 6. O-O {[%emt 0:02:41]} Rb8 {[%emt 0:00:52]} 7. a4 {[%emt 0:07:21]} a6 {[%emt 0:00:15]} 8. a5 {[%emt 0:01:42]} b5 {[%emt 0:00:12]} 9. axb6 {[%emt 0:00:40]} Rxb6 {[%emt 0:00:45]} 10. Nbd2 {[%emt 0:03:49]} Rb4 {[%emt 0:01:23]} 11. Ra4 {[%emt 0:04:58]} Nb6 {[%emt 0:11:11]} 12. Rxb4 {[%emt 0:01:30]} Bxb4 {[%emt 0:00:08]} 13. Nxc4 {[%emt 0:02:10]} O-O {[%emt 0:03:27]} 14. Nfe5 {[%emt 0:07:41]} Nxc4 {[%emt 0:00:18]} 15. Nxc4 {[%emt 0:00:19]} Bd7 {[%emt 0:00:05]} 16. Qb3 {[%emt 0:09:48]} c5 {[%emt 0:00:55]} 17. dxc5 {[%emt 0:06:35]} Bxc5 {[%emt 0:00:08]} 18. Be3 {[%emt 0:08:45]} Bxe3 {[%emt 0:00:28]} 19. Qxe3 {[%emt 0:00:13]} Bb5 {[%emt 0:02:05]} 20. Na3 {[%emt 0:06:01]} Qb8 {[%emt 0:00:07]} 21. Rc1 {[%emt 0:04:27]} Rd8 {[%emt 0:01:43]} 22. h3 {[%emt 0:03:43]} h6 {[%emt 0:02:13]} 23. Nxb5 {[%emt 0:03:52]} Qxb5 {[%emt 0:02:15]} 24. b3 {[%emt 0:01:24]} Qb4 {[%emt 0:02:39]} 25. Qc3 {[%emt 0:03:44]} Rd1+ {[%emt 0:01:38]} 26. Kh2 {[%emt 0:00:14]} Qxc3 {[%emt 0:00:04]} 27. Rxc3 {[%emt 0:00:04]} Rd2 {[%emt 0:00:02]} 28. Bf3 {[%emt 0:02:22]} Rb2 {[%emt 0:01:38]} 29. Kg2 {[%emt 0:02:17]} Nd7 {[%emt 0:00:39]} 30. Rc6 {[%emt 0:02:15]} Ne5 {[%emt 0:01:15]} 31. Rxa6 {[%emt 0:00:16]} Nxf3 {[%emt 0:00:02]} 32. Kxf3 {[%emt 0:00:07]} Rxb3+ {[%emt 0:00:02]} 33. Kg2 {[%emt 0:00:07]} g6 {[%emt 0:00:03]} 34. e3 {[%emt 0:00:13]} Kg7 {[%emt 0:00:01]} 35. Ra7 {[%emt 0:00:06]} Kg8 {[%emt 0:00:03]} 36. Ra6 {[%emt 0:00:06]} h5 {[%emt 0:00:04]} 37. h4 {[%emt 0:00:10]} Kg7 {[%emt 0:00:00]} 38. Ra7 {[%emt 0:00:06]} Rb2 {[%emt 0:00:02]} 39. Rc7 {[%emt 0:00:07]} Ra2 {[%emt 0:00:02]} 40. Rb7 {[%emt 0:00:05]} Kf6 {[%emt 0:00:02]} 1/2-1/2

[Event "10th Uppsala Young Champions 2023"]
[Site "Uppsala"]
[Date "2023.10.30"]
[Round "5.3"]
[White "Grahn, Vidar"]
[Black "Domalchuk-Jonasson, Aleksandr"]
[Result "1/2-1/2"]
[ECO "D30"]
[WhiteElo "2133"]
[BlackElo "2392"]
[Annotator "RC"]
[PlyCount "81"]
[EventDate "2023.10.27"]
[EventType "swiss"]
[EventCountry "SWE"]
[SourceTitle "playchess.com"]
[Source "ChessBase"]
[SourceQuality "1"]
[TimeControl "5400+30"]

1. d4 {[%emt 0:00:03]} d5 {[%emt 0:00:15]} 2. c4 {[%emt 0:00:03]} e6 {[%emt 0:00:11]} 3. Nf3 {[%emt 0:00:05]} a6 {[%emt 0:00:25]} 4. g3 {[%emt 0:00:27]} dxc4 {[%emt 0:00:20]} 5. Bg2 {[%emt 0:00:06]} Nc6 {[%emt 0:00:14]} 6. e3 {[%emt 0:00:17]} Rb8 {[%emt 0:06:38]} 7. Nfd2 {[%emt 0:00:17]} Nge7 {[%emt 0:09:40]} 8. Nxc4 {[%emt 0:07:30]} b5 {[%emt 0:00:30]} 9. Ncd2 {[%emt 0:01:44]} Bb7 {[%emt 0:02:26]} 10. O-O {[%emt 0:00:43]} Nc8 {[%emt 0:08:12]} 11. Nc3 {[%emt 0:03:22]} Be7 {[%emt 0:01:52]} 12. b3 {[%emt 0:04:27]} O-O {[%emt 0:00:48]} 13. Bb2 {[%emt 0:00:47]} Nb4 {[%emt 0:01:28]} 14. Nde4 {[%emt 0:03:51]} f5 {[%emt 0:01:34]} 15. Nc5 {[%emt 0:00:52]} Bxg2 {[%emt 0:03:14]} 16. Kxg2 {[%emt 0:00:20]} Bxc5 {[%emt 0:00:34]} 17. dxc5 {[%emt 0:00:07]} Nd3 {[%emt 0:01:18]} 18. Qc2 {[%emt 0:02:00]} Nxb2 {[%emt 0:08:15]} 19. Qxb2 {[%emt 0:00:12]} Ne7 {[%emt 0:13:26]} 20. Rfd1 {[%emt 0:01:29]} Qe8 {[%emt 0:00:03]} 21. Ne2 {[%emt 0:07:42]} Rd8 {[%emt 0:02:06]} 22. Nf4 {[%emt 0:04:56]} Rxd1 {[%emt 0:05:01]} 23. Rxd1 {[%emt 0:00:16]} g5 {[%emt 0:00:06]} 24. Nd3 {[%emt 0:02:33]} h5 {[%emt 0:09:47]} 25. Ne5 {[%emt 0:02:51]} Nd5 {[%emt 0:01:14]} 26. c6 {[%emt 0:01:06]} h4 {[%emt 0:02:43]} 27. Nd7 {[%emt 0:05:36]} Qh5 {[%emt 0:01:44]} 28. Rxd5 {[%emt 0:01:26]} exd5 {[%emt 0:06:09]} 29. f3 {[%emt 0:06:27]} hxg3 {[%emt 0:05:30]} 30. hxg3 {[%emt 0:01:28]} g4 {[%emt 0:00:07]} 31. fxg4 {[%emt 0:01:29]} fxg4 {[%emt 0:02:03]} 32. Nf6+ {[%emt 0:00:34]} Rxf6 {[%emt 0:00:05]} 33. Qxf6 {[%emt 0:00:04]} Qh3+ {[%emt 0:00:04]} 34. Kf2 {[%emt 0:00:09]} Qh2+ {[%emt 0:00:02]} 35. Kf1 {[%emt 0:00:11]} Qh1+ {[%emt 0:01:29]} 36. Kf2 {[%emt 0:00:09]} Qh2+ {[%emt 0:00:11]} 37. Kf1 {[%emt 0:00:07]} Qxg3 {[%emt 0:00:28]} 38. Qg6+ {[%emt 0:00:13]} Kf8 {[%emt 0:00:09]} 39. Qf6+ {[%emt 0:00:05]} Kg8 {[%emt 0:00:07]} 40. Qg6+ {[%emt 0:00:09]} Kf8 {[%emt 0:00:05]} 41. Qf6+ {[%emt 0:00:03]} 1/2-1/2

[Event "10th Uppsala Young Champions 2023"]
[Site "Uppsala"]
[Date "2023.10.30"]
[Round "5.4"]
[White "Tripathi, Pratyush"]
[Black "Omarsson, Adam"]
[Result "0-1"]
[ECO "E94"]
[WhiteElo "1801"]
[BlackElo "1946"]
[Annotator "RC"]
[PlyCount "68"]
[EventDate "2023.10.27"]
[EventType "swiss"]
[EventCountry "SWE"]
[SourceTitle "playchess.com"]
[Source "ChessBase"]
[SourceQuality "1"]
[TimeControl "5400+30"]

1. d4 {[%emt 0:00:38]} Nf6 {[%emt 0:00:14]} 2. c4 {[%emt 0:00:06]} g6 {[%emt 0:00:20]} 3. Nc3 {[%emt 0:00:05]} Bg7 {[%emt 0:00:15]} 4. e4 {[%emt 0:00:05]} d6 {[%emt 0:00:50]} 5. Be2 {[%emt 0:00:19]} O-O {[%emt 0:00:33]} 6. Be3 {[%emt 0:00:04]} Na6 {[%emt 0:00:36]} 7. Nf3 {[%emt 0:00:09]} e5 {[%emt 0:00:22]} 8. O-O {[%emt 0:00:16]} c6 {[%emt 0:06:35]} 9. a3 {[%emt 0:05:05]} Qe7 {[%emt 0:01:35]} 10. dxe5 {[%emt 0:02:55]} dxe5 {[%emt 0:00:06]} 11. b4 {[%emt 0:00:05]} Ng4 {[%emt 0:04:02]} 12. Bg5 {[%emt 0:00:13]} f6 {[%emt 0:00:07]} 13. Bc1 {[%emt 0:00:04]} f5 {[%emt 0:00:27]} 14. c5 {[%emt 0:04:09]} Rd8 {[%emt 0:08:00]} 15. Qb3+ {[%emt 0:09:54]} Be6 {[%emt 0:00:24]} 16. Qb2 {[%emt 0:04:30]} f4 {[%emt 0:07:12]} 17. h3 {[%emt 0:12:53]} Nh6 {[%emt 0:00:11]} 18. Bxa6 {[%emt 0:00:24]} bxa6 {[%emt 0:00:05]} 19. Qe2 {[%emt 0:00:05]} a5 {[%emt 0:00:31]} 20. Nd2 {[%emt 0:05:13]} axb4 {[%emt 0:02:10]} 21. axb4 {[%emt 0:00:04]} Rd4 {[%emt 0:05:00]} 22. Ba3 {[%emt 0:00:46]} Rad8 {[%emt 0:00:30]} 23. Rfd1 {[%emt 0:00:04]} Nf7 {[%emt 0:08:33]} 24. Nf3 {[%emt 0:00:42]} Ng5 {[%emt 0:12:02]} 25. Nxg5 {[%emt 0:12:20]} Qxg5 {[%emt 0:00:07]} 26. Qf3 {[%emt 0:00:07]} Bc4 {[%emt 0:03:09]} 27. Bb2 {[%emt 0:02:49]} Rd2 {[%emt 0:06:44]} 28. Rxd2 {[%emt 0:11:27]} Rxd2 {[%emt 0:00:06]} 29. Nd1 {[%emt 0:00:02]} Qd8 {[%emt 0:01:38]} 30. Rc1 {[%emt 0:02:33]} Rd3 {[%emt 0:01:58]} 31. Qe2 {[%emt 0:01:12]} Bb3 {[%emt 0:00:16]} 32. Nc3 {[%emt 0:02:42]} Rd2 {[%emt 0:00:05]} 33. Qa6 {[%emt 0:00:03]} Rxb2 {[%emt 0:00:11]} 34. Qa3 {[%emt 0:00:06]} Qd2 {[%emt 0:00:07]} 0-1